fUSD/lending_fUSD_20250519
["ID","MTS","AMOUNT","RATE_DAILY","PERIOD"]
[361627017,1747648255465,-420.0,0.00013808,2]
[361627018,1747648255474,-420.0,0.00013808,2]
[361627019,1747648255483,-470.4,0.00013808,2]
[361627020,1747648255492,-614.37,0.00013808,2]
[361627021,1747648255501,-721.99,0.00013808,2]
[361627022,1747648255510,-420.0,0.00013808,2]
[361627023,1747648255519,-479.367614,0.00013808,2]
[361627024,1747648255529,-479.367614,0.00013808,2]
[361627025,1747648255538,-464.08,0.00013808,2]
[361627026,1747648255547,-420.0,0.00013808,2]
[361627027,1747648255556,-479.367614,0.00013808,2]
[361627028,1747648255565,-479.367614,0.00013808,2]
[361627029,1747648255575,-420.0,0.00013808,2]
[361627030,1747648255583,-420.0,0.00013808,2]
[361627031,1747648255593,-420.0,0.00013808,2]
[361627032,1747648255602,-420.0,0.00013808,2]
[361627033,1747648255611,-503.27,0.00013808,2]
[361627034,1747648255619,-684.12,0.00013808,2]
[361627035,1747648255628,-420.0,0.00013808,2]
[361627036,1747648255637,-420.0,0.00013808,2]
[361627037,1747648255646,-905.03,0.00013808,2]
[361627038,1747648255655,-762.78,0.00013808,2]
[361627039,1747648255664,-285.316898,0.00013808,2]
[361627040,1747648255673,-420.0,0.00013808,2]
[361627041,1747648255682,-420.0,0.00013808,2]
[361627042,1747648255691,-981.37,0.00013808,2]
[361627043,1747648255700,-796.52,0.00013808,2]
[361627044,1747648255709,-420.0,0.00013808,2]
[361627045,1747648255718,-953.58,0.00013808,2]
[361627046,1747648255727,-420.0,0.00013808,2]
[361627047,1747648255736,-722.34,0.00013808,2]
[361627048,1747648255745,-420.0,0.00013808,2]
[361627049,1747648255754,-151.0,0.00013808,2]
[361627050,1747648255763,-151.0,0.00013808,2]
[361627051,1747648255772,-420.0,0.00013808,2]
[361627052,1747648255781,-420.0,0.00013808,2]
[361627053,1747648255790,-446.26,0.00013808,2]
[361627054,1747648255799,-420.0,0.00013808,2]
[361627055,1747648255808,-1159.19,0.00013808,2]
[361627056,1747648255820,-740.14,0.00013808,2]
[361627057,1747648255830,-552.08,0.00013808,2]
[361627058,1747648255840,-368.82071348,0.00013808,2]
[361627059,1747648255851,-482.44,0.00013808,2]
[361627060,1747648255862,-420.0,0.00013808,2]
[361627061,1747648255872,-806.16,0.00013808,2]
[361627062,1747648255881,-476.97,0.00013808,2]
[361627063,1747648255890,-659.31,0.00013808,2]
[361627064,1747648255900,-629.37,0.00013808,2]
[361627065,1747648255909,-616.45,0.00013808,2]
[361627066,1747648255918,-420.0,0.00013808,2]
[361627067,1747648255928,-420.0,0.00013808,2]
[361627068,1747648255939,-320.0,0.00013808,2]
[361627069,1747648255948,-420.0,0.00013808,2]
[361627070,1747648255959,-420.0,0.00013808,2]
[361627071,1747648255969,-420.0,0.00013808,2]
[361627072,1747648255979,-527.03,0.00013808,2]
[361627073,1747648255990,-420.0,0.00013808,2]
[361627074,1747648255999,-420.0,0.00013808,2]
[361627075,1747648256010,-420.0,0.00013808,2]
[361627076,1747648256019,-420.0,0.00013808,2]
[361627077,1747648256028,-420.0,0.00013808,2]
[361627078,1747648256038,-263.894198,0.00013808,2]
[361627079,1747648256048,-420.0,0.00013808,2]
[361627080,1747648256057,-263.894198,0.00013808,2]
[361627081,1747648256067,-420.0,0.00013808,2]
[361627082,1747648256076,-936.035584,0.00013808,2]
[361627083,1747648256085,-420.0,0.00013808,2]
[361627084,1747648256094,-420.0,0.00013808,2]
[361627085,1747648256104,-420.0,0.00013808,2]
[361627086,1747648256113,-833.81,0.00013808,2]
[361627087,1747648256123,-263.894198,0.00013808,2]
[361627088,1747648256133,-263.894198,0.00013808,2]
[361627089,1747648256142,-381.90098463,0.00013808,2]
[361627090,1747648256151,-420.0,0.00013808,2]
[361627091,1747648256161,-420.0,0.00013808,2]
[361627092,1747648256170,-151.0,0.00013808,2]
[361627093,1747648256179,-151.0,0.00013808,2]
[361627094,1747648256188,-420.0,0.00013808,2]
[361627095,1747648256198,-420.0,0.00013808,2]
[361627096,1747648256210,-678.11,0.00013808,2]
[361627097,1747648256220,-420.0,0.00013808,2]
[361627098,1747648256230,-420.0,0.00013808,2]
[361627099,1747648256239,-944.41,0.00013808,2]
[361627100,1747648256249,-420.0,0.00013808,2]
[361627101,1747648256259,-420.0,0.00013808,2]
[361627102,1747648256268,-489.49,0.00013808,2]
[361627103,1747648256278,-842.86,0.00013808,2]
[361627104,1747648256288,-320.0,0.00013808,2]
[361627105,1747648256297,-654.6,0.00013808,2]
[361627106,1747648256307,-1742.9,0.00013808,2]
[361627107,1747648256316,-665.75,0.00013808,2]
[361627108,1747648256326,-494.60378726,0.00013808,2]
[361627109,1747648256335,-895.8,0.00013808,2]
[361627110,1747648256345,-420.0,0.00013808,2]
[361627111,1747648256354,-456.2,0.00013808,2]
[361627112,1747648256364,-320.0,0.00013808,2]
[361627113,1747648256373,-420.0,0.00013808,2]
[361627114,1747648256383,-671.29,0.00013808,2]
[361627115,1747648256393,-420.0,0.00013808,2]
[361627116,1747648256402,-1145.54,0.00013808,2]
[361627117,1747648256412,-722.76,0.00013808,2]
[361627118,1747648256421,-420.0,0.00013808,2]
[361627119,1747648256431,-747.75,0.00013808,2]
[361627120,1747648256440,-420.0,0.00013808,2]
[361627121,1747648256449,-420.0,0.00013808,2]
[361627122,1747648256459,-608.15,0.00013808,2]
[361627123,1747648256468,-745.94,0.00013808,2]
[361627124,1747648256477,-511.83,0.00013808,2]
[361627125,1747648256487,-420.0,0.00013808,2]
[361627126,1747648256496,-439.4,0.00013808,2]
[361627127,1747648256505,-151.0,0.00013808,2]
[361627128,1747648256515,-420.0,0.00013808,2]
[361627129,1747648256524,-151.0,0.00013808,2]
[361627130,1747648256533,-1971.91,0.00013808,2]
[361627131,1747648256543,-420.0,0.00013808,2]
[361627132,1747648256553,-420.0,0.00013808,2]
[361627133,1747648256562,-420.0,0.00013808,2]
[361627134,1747648256571,-420.0,0.00013808,2]
[361627135,1747648256580,-151.0,0.00013808,2]
[361627136,1747648256590,-420.0,0.00013808,2]
[361627137,1747648256599,-151.0,0.00013808,2]
[361627138,1747648256608,-420.0,0.00013808,2]
[361627139,1747648256618,-409.35448125,0.00013808,2]
[361627140,1747648256627,-420.0,0.00013808,2]
[361627141,1747648256636,-420.0,0.00013808,2]
[361627142,1747648256645,-1030.58,0.00013808,2]
[361627143,1747648256654,-653.0,0.00013808,2]
[361627144,1747648256663,-376.85686662,0.00013808,2]
[361627145,1747648256672,-523.38,0.00013808,2]
[361627146,1747648256681,-420.0,0.00013808,2]
[361627147,1747648256690,-618.82,0.00013808,2]
[361627148,1747648256699,-420.0,0.00013808,2]
[361627149,1747648256709,-151.0,0.00013808,2]
[361627150,1747648256718,-420.0,0.00013808,2]
[361627151,1747648256727,-151.0,0.00013808,2]
[361627152,1747648256737,-945.11,0.00013808,2]
[361627153,1747648256746,-151.0,0.00013808,2]
[361627154,1747648256755,-1100.78,0.00013808,2]
[361627155,1747648256765,-845.44,0.00013808,2]
[361627156,1747648256775,-420.0,0.00013808,2]
[361627157,1747648256785,-428.93,0.00013808,2]
[361627158,1747648256797,-555.49,0.00013808,2]
[361627159,1747648256807,-3904.54,0.00013808,2]
[361627160,1747648256818,-151.0,0.00013808,2]
[361627161,1747648256829,-420.0,0.00013808,2]
[361627162,1747648256841,-151.0,0.00013808,2]
[361627163,1747648256852,-491.03,0.00013808,2]
[361627164,1747648256862,-420.0,0.00013808,2]
[361627165,1747648256873,-1417.33,0.00013808,2]
[361627166,1747648256884,-471.7,0.00013808,2]
[361627167,1747648256894,-428.82,0.00013808,2]
[361627168,1747648256904,-242.29535817,0.00013808,2]
[361627169,1747648258032,-400.0,0.00013698,2]
[361627170,1747648258043,-420.0,0.00013698,2]
[361627171,1747648258053,-151.0,0.00013807,2]
[361627172,1747648258062,-287.54464183,0.00013808,2]
[361627173,1747648258072,-420.0,0.00013808,2]
[361627174,1747648258082,-420.0,0.00013808,2]
[361627175,1747648258091,-751.98,0.00013808,2]
[361627176,1747648258101,-965.86,0.00013808,2]
[361627177,1747648258111,-250.0,0.00013808,2]
[361627178,1747648258120,-654.15,0.00013808,2]
[361627179,1747648258129,-380.0,0.00013808,2]
[361627180,1747648258138,-420.0,0.00013808,2]
[361627181,1747648258148,-420.0,0.00013808,2]
[361627182,1747648258157,-978.86,0.00013808,2]
[361627183,1747648258167,-420.0,0.00013808,2]
[361627184,1747648258177,-280.0,0.00013808,2]
[361627185,1747648258187,-1197.16,0.00013808,2]
[361627186,1747648258197,-420.0,0.00013808,2]
[361627187,1747648258209,-3874.91,0.00013808,2]
[361627188,1747648258219,-7215.12,0.00013808,2]
[361627189,1747648258228,-500.0,0.00013808,2]
[361627190,1747648258238,-420.0,0.00013808,2]
[361627191,1747648258249,-151.0,0.00013808,2]
[361627192,1747648258258,-1074.38,0.00013808,2]
[361627193,1747648258268,-151.0,0.00013808,2]
[361627194,1747648258280,-151.0,0.00013808,2]
[361627195,1747648258291,-3570.35,0.00013808,2]
[361627196,1747648258303,-1338.14,0.00013808,2]
[361627197,1747648258312,-438.46,0.00013808,2]
[361627198,1747648258321,-420.0,0.00013808,2]
[361627199,1747648258331,-420.0,0.00013808,2]
[361627200,1747648258340,-568.06,0.00013808,2]
[361627201,1747648258351,-420.0,0.00013808,2]
[361627202,1747648258360,-420.0,0.00013808,2]
[361627203,1747648258370,-784.16,0.00013808,2]
[361627204,1747648258379,-151.0,0.00013808,2]
[361627205,1747648258389,-157763.35,0.00013808,2]
[361627206,1747648258398,-151.0,0.00013808,2]
[361627207,1747648258408,-151.0,0.00013808,2]
[361627208,1747648258417,-420.0,0.00013808,2]
[361627209,1747648258426,-382.26097507,0.00013808,2]
[361627210,1747648258436,-420.0,0.00013808,2]
[361627211,1747648258446,-558.69,0.00013808,2]
[361627212,1747648258455,-420.0,0.00013808,2]
[361627213,1747648258465,-3688.27,0.00013808,2]
[361627214,1747648258474,-1010.02,0.00013808,2]
[361627215,1747648258483,-2317.83,0.00013808,2]
[361627216,1747648258493,-1723.07,0.00013808,2]
[361627217,1747648258502,-420.0,0.00013808,2]
[361627218,1747648258511,-420.0,0.00013808,2]
[361627219,1747648258521,-4830.3743833,0.00013808,2]
[361627220,1747648258546,-3979.95374784,0.00013808,2]
[361627221,1747648258557,-1669.20532171,0.00013808,2]
[361627222,1747648258570,-498.23956915,0.00013808,2]
[361627223,1747648258608,-1635.846978,0.00013808,2]
[361627224,1747648258617,-2431.65,0.00013808,2]
[361627225,1747648258627,-672.37,0.00013808,2]
[361627226,1747648258636,-420.0,0.00013808,2]
[361627227,1747648258646,-420.0,0.00013808,2]
[361627228,1747648258655,-420.0,0.00013808,2]
[361627229,1747648258665,-8266.46,0.00013808,2]
[361627230,1747648258674,-578.75,0.00013808,2]
[361627231,1747648258684,-1000.62,0.00013808,2]
[361627232,1747648258693,-420.0,0.00013808,2]
[361627233,1747648258702,-420.0,0.00013808,2]
[361627234,1747648258712,-7159.49,0.00013808,2]
[361627235,1747648258721,-420.0,0.00013808,2]
[361627236,1747648258731,-1048.71,0.00013808,2]
[361627237,1747648258740,-420.0,0.00013808,2]
[361627238,1747648258750,-420.0,0.00013808,2]
[361627239,1747648258759,-540.38,0.00013808,2]
[361627240,1747648258769,-1327.16,0.00013808,2]
[361627241,1747648258778,-729.17,0.00013808,2]
[361627242,1747648258788,-1066.73,0.00013808,2]
[361627243,1747648258798,-655.7,0.00013808,2]
[361627244,1747648258807,-151.0,0.00013808,2]
[361627245,1747648258816,-1230.63,0.00013808,2]
[361627246,1747648258826,-151.950067,0.00013808,2]
[361627247,1747648258835,-420.0,0.00013808,2]
[361627248,1747648258844,-420.0,0.00013808,2]
[361627249,1747648258854,-420.0,0.00013808,2]
[361627250,1747648258864,-420.0,0.00013808,2]
[361627251,1747648258874,-10905.82,0.00013808,2]
[361627252,1747648258884,-518.18,0.00013808,2]
[361627253,1747648258893,-420.0,0.00013808,2]
[361627254,1747648258902,-2613.39,0.00013808,2]
[361627255,1747648258912,-966.54,0.00013808,2]
[361627256,1747648258922,-83843.26866722,0.00013808,2]
[361627257,1747648258994,-1.24133278,0.00013808,2]
[361627258,1747648259004,-420.0,0.00013808,2]
[361627259,1747648259014,-44.28868372,0.00013808,2]
[361627260,1747648259025,-267.45896499,0.00013808,2]
[361627261,1747648259037,-714.62235129,0.00013808,2]
[361627262,1747648259048,-420.0,0.00013808,2]
[361627263,1747648259057,-889.58,0.00013808,2]
[361627264,1747648259067,-594.64,0.00013808,2]
[361627265,1747648259076,-17290.67708498,0.00013808,2]
[361627266,1747648259619,-714.22,0.000132,2]
[361627267,1747648259629,-420.0,0.00013698,2]
[361627268,1747648259639,-443.08900334,0.00013698,2]
[361627269,1747648259648,-102.66291502,0.00013808,2]
[361627270,1747648259658,-607.98,0.00013808,2]
[361627271,1747648259667,-230.77443318,0.00013808,2]
[361627272,1747648259688,-915.93556682,0.00013808,2]
[361627273,1747648259697,-688.64,0.00013808,2]
[361627274,1747648259707,-452.76,0.00013808,2]
[361627275,1747648259716,-176.41685906,0.00013808,2]
[361627361,1747648596638,300.0,0.000137,5]
[361627362,1747648598727,300.0,0.000138,5]
[361627363,1747648601043,1000.0,0.000139,5]
[361627365,1747649231939,831.5,0.00010671,2]
[361627366,1747649261665,300.0,0.000137,5]
[361627367,1747649263816,300.0,0.000138,5]
[361627368,1747649265869,400.0,0.000139,5]
[361627369,1747649381164,207.0,0.00011348,2]
[361627371,1747649407216,162.0,0.000139,7]
[361627372,1747649410171,258.0,0.000139,7]
[361627373,1747649413991,169.25373134,0.000139,7]
[361627374,1747649416228,250.74626866,0.000139,7]
[361627375,1747649420686,169.25373134,0.000139,7]
[361627376,1747649422485,250.74626866,0.000139,7]
[361627377,1747649428940,169.25373134,0.000139,7]
[361627383,1747649431693,-1196.777188,0.00012428,2]
[361627384,1747649431702,-495.9,0.00012491,2]
[361627385,1747649431712,-431.43,0.00012507,2]
[361627386,1747649431721,-1000.0,0.00012603,2]
[361627387,1747649431730,-150.0,0.0001261,2]
[361627388,1747649431740,-747.68802236,0.00012629,2]
[361627389,1747649431800,-233.66197764,0.00012629,2]
[361627390,1747649431809,-307.44140575,0.000129,2]
[361627391,1747649431818,-307.44140559,0.00012934,2]
[361627392,1747649431827,-831.5,0.00012935,2]
[361627393,1747649431837,-307.44140559,0.00012969,2]
[361627394,1747649431847,-1200.0,0.00012999,2]
[361627395,1747649431857,-300.0,0.00013,4]
[361627396,1747649431866,-1320.67,0.00013,2]
[361627397,1747649431876,-1320.67,0.00013,2]
[361627398,1747649431886,-1320.67,0.00013,2]
[361627399,1747649431896,-1320.67,0.00013,2]
[361627400,1747649431905,-1320.67,0.00013,2]
[361627401,1747649431914,-307.44140559,0.00013003,2]
[361627402,1747649431923,-307.44140559,0.00013038,2]
[361627403,1747649431933,-307.44140559,0.00013072,2]
[361627404,1747649431943,-890.53191992,0.000131,2]
[361627405,1747649431952,-600.0,0.000131,4]
[361627406,1747649431961,-307.44140559,0.00013107,2]
[361627407,1747649431970,-307.44140559,0.00013141,2]
[361627408,1747649431978,-307.44140559,0.00013176,2]
[361627409,1747649431987,-900.0,0.000132,4]
[361627410,1747649431995,-1076.0,0.0001321,2]
[361627411,1747649432004,-307.44140559,0.0001321,2]
[361627412,1747649432012,-307.44140559,0.00013245,2]
[361627413,1747649432020,-307.44140559,0.00013279,2]
[361627414,1747649432029,-1200.0,0.000133,4]
[361627415,1747649432037,-307.44140559,0.00013314,2]
[361627416,1747649432045,-1344.0,0.00013338,2]
[361627417,1747649432054,-307.44140559,0.00013348,2]
[361627418,1747649432062,-307.44140559,0.00013383,2]
[361627419,1747649432071,-207.4,0.00013392,2]
[361627420,1747649432079,-150.0,0.00013399,2]
[361627421,1747649432086,-1065.55,0.000134,2]
[361627422,1747649432093,-150.99,0.000134,2]
[361627423,1747649432105,-150.99,0.000134,2]
[361627424,1747649432114,-4788.7508244,0.000134,2]
[361627425,1747649432126,-1031.03,0.000134,2]
[361627426,1747649436597,-1100.43320275,0.000134,2]
[361627484,1747649437698,-2460.0143315,0.000134,2]
[361627485,1747649437751,-4634.40164135,0.000134,2]
[361627486,1747649437760,-257.14679762,0.000134,2]
[361627487,1747649437859,-742.84320238,0.000134,2]
[361627488,1747649437868,-557.98,0.000134,2]
[361627489,1747649437878,-894.78,0.000134,2]
[361627490,1747649437887,-904.06966718,0.000134,2]
[361627491,1747649437978,-3179.95002997,0.000134,2]
[361627554,1747649442716,-1037.5,0.000134,2]
[361627555,1747649442730,-769.9985493,0.000134,2]
[361627556,1747649442930,-17878.88175355,0.000134,2]
[361627557,1747649442941,-1774.34,0.000134,2]
[361627558,1747649442953,-9999.99,0.000134,2]
[361627559,1747649442964,-299.99,0.000134,2]
[361627560,1747649442975,-33.28924945,0.000134,2]
[361627567,1747649445739,-957.28813669,0.000134,2]
[361627568,1747649445845,-3000.0,0.000134,2]
[361627569,1747649446063,-3415.53444518,0.000134,2]
[361627570,1747649446115,-1768.0925502,0.000134,2]
[361627571,1747649446127,-825.78561848,0.000134,2]
[361627572,1747649446138,-1500.0,0.000134,4]
[361627573,1747649446149,-307.44140559,0.00013417,2]
[361627574,1747649446161,-295.30674181,0.00013424,2]
[361627575,1747649446172,-162.08423412,0.00013452,2]
[361627576,1747649446184,-145.35717147,0.00013452,2]
[361627577,1747649446195,-500.0,0.00013452,2]
[361627578,1747649446206,-307.44140559,0.00013486,2]
[361627579,1747649446217,-300.0,0.000135,4]
[361627580,1747649446227,-307.44140559,0.00013521,2]
[361627581,1747649446238,-270.7647,0.00013522,2]
[361627582,1747649446249,-307.44140559,0.00013555,2]
[361627583,1747649446259,-6830.0,0.00013564,2]
[361627584,1747649446269,-3257.607,0.00013564,2]
[361627585,1747649446280,-880.0,0.00013564,2]
[361627586,1747649446291,-841.0,0.00013564,2]
[361627587,1747649446301,-154.0,0.00013564,2]
[361627588,1747649446311,-197.17773652,0.00013571,2]
[361627589,1747649446321,-307.44140559,0.0001359,2]
[361627590,1747649446332,-1409.77352262,0.00013598,2]
[361627591,1747649446343,-466.22187564,0.00013598,2]
[361627592,1747649446352,-158.58407816,0.00013598,2]
[361627593,1747649446363,-161.11014601,0.00013598,2]
[361627594,1747649446373,-163.07712506,0.00013598,2]
[361627595,1747649446383,-1000.0,0.00013598,2]
[361627596,1747649446394,-500.0,0.00013598,2]
[361627597,1747649446404,-4835.7403,0.00013598,2]
[361627598,1747649446414,-1300.184,0.00013598,2]
[361627599,1747649446425,-300.0,0.000136,4]
[361627601,1747649446435,-1099.99046065,0.00013622,2]
[361627602,1747649446445,-1132.89034167,0.00013622,2]
[361627603,1747649446455,-1020.92902814,0.00013622,2]
[361627604,1747649446465,-1024.41879035,0.00013622,2]
[361627605,1747649446475,-1083.69354899,0.00013622,2]
[361627606,1747649446488,-1377.03785355,0.00013622,2]
[361627607,1747649446499,-307.44140559,0.00013624,2]
[361627608,1747649446509,-1409.77352253,0.00013632,2]
[361627609,1747649446525,-466.22187563,0.00013632,2]
[361627610,1747649446546,-353.6120587,0.00013638,2]
[361627611,1747649446557,-150.0,0.00013652,2]
[361627612,1747649446569,-307.44140559,0.00013659,2]
[361627614,1747649446579,-1409.77352253,0.00013665,2]
[361627615,1747649446589,-466.22187563,0.00013665,2]
[361627616,1747649446602,-500.0,0.00013673,2]
[361627617,1747649446613,-500.0,0.00013673,2]
[361627618,1747649446623,-500.0,0.00013673,2]
[361627619,1747649446633,-167.66,0.00013688,2]
[361627620,1747649446642,-151.0,0.0001369,2]
[361627621,1747649446652,-155.0,0.0001369,2]
[361627622,1747649446696,-1199.20597015,0.0001369,2]
[361627623,1747649446707,-668.65185757,0.0001369,2]
[361627624,1747649446719,-151.0,0.0001369,2]
[361627625,1747649446729,-668.65185757,0.0001369,2]
[361627626,1747649446739,-307.44140559,0.00013693,2]
[361627627,1747649446749,-1874.328,0.00013697,2]
[361627628,1747649446760,-434.85468911,0.00013697,2]
[361627629,1747649446770,-415.64544539,0.00013698,2]
[361627630,1747649446780,-420.0,0.00013698,2]
[361627631,1747649446791,-511.48232024,0.00013698,2]
[361627632,1747649446801,-420.0,0.00013698,2]
[361627633,1747649446811,-400.56212363,0.00013698,2]
[361627634,1747649446822,-500.0,0.00013698,2]
[361627635,1747649446832,-420.0,0.00013698,2]
[361627636,1747649446841,-400.0,0.00013698,2]
[361627637,1747649446851,-500.72672628,0.00013698,2]
[361627638,1747649446861,-400.20646479,0.00013698,2]
[361627639,1747649446871,-420.0,0.00013698,2]
[361627640,1747649446881,-400.316295,0.00013698,2]
[361627641,1747649446890,-400.0,0.00013698,2]
[361627642,1747649446900,-2935.543627,0.00013698,2]
[361627643,1747649446910,-420.0,0.00013698,2]
[361627644,1747649446921,-420.0,0.00013698,2]
[361627645,1747649446931,-420.0,0.00013698,2]
[361627646,1747649446941,-420.0,0.00013698,2]
[361627647,1747649446951,-420.0,0.00013698,2]
[361627648,1747649446961,-420.0,0.00013698,2]
[361627649,1747649446971,-420.0,0.00013698,2]
[361627650,1747649446981,-420.0,0.00013698,2]
[361627651,1747649446991,-420.0,0.00013698,2]
[361627652,1747649447001,-420.0,0.00013698,2]
[361627653,1747649447011,-439.7,0.00013698,2]
[361627654,1747649447021,-420.0,0.00013698,2]
[361627655,1747649447031,-223.59705601,0.00013698,2]
[361627656,1747649447042,-300.0,0.00013698,2]
[361627657,1747649447052,-420.0,0.00013698,2]
[361627658,1747649447062,-294.57518375,0.00013698,2]
[361627659,1747649447073,-420.0,0.00013698,2]
[361627660,1747649447083,-420.0,0.00013698,2]
[361627661,1747649447092,-420.0,0.00013698,2]
[361627662,1747649447102,-360.88517072,0.00013698,2]
[361627663,1747649447113,-320.0,0.00013698,2]
[361627664,1747649447123,-875.95,0.00013698,2]
[361627665,1747649447133,-420.0,0.00013698,2]
[361627666,1747649447143,-420.0,0.00013698,2]
[361627667,1747649447153,-380.0,0.00013698,2]
[361627668,1747649447163,-420.0,0.00013698,2]
[361627669,1747649447174,-420.0,0.00013698,2]
[361627670,1747649447184,-524.7,0.00013698,2]
[361627671,1747649447194,-661.82,0.00013698,2]
[361627672,1747649447204,-420.0,0.00013698,2]
[361627673,1747649447214,-420.0,0.00013698,2]
[361627674,1747649447224,-485.97,0.00013698,2]
[361627675,1747649447235,-420.0,0.00013698,2]
[361627676,1747649447245,-420.0,0.00013698,2]
[361627677,1747649447255,-420.0,0.00013698,2]
[361627678,1747649447266,-420.0,0.00013698,2]
[361627679,1747649447276,-437.22,0.00013698,2]
[361627680,1747649447286,-420.0,0.00013698,2]
[361627681,1747649447296,-483.11,0.00013698,2]
[361627682,1747649447307,-535.58433858,0.00013698,2]
[361627683,1747649447317,-324.53404245,0.00013698,2]
[361627684,1747649447329,-420.0,0.00013698,2]
[361627685,1747649447339,-615.35,0.00013698,2]
[361627686,1747649447349,-420.0,0.00013698,2]
[361627687,1747649447359,-420.0,0.00013698,2]
[361627688,1747649447370,-420.0,0.00013698,2]
[361627689,1747649447380,-542.88,0.00013698,2]
[361627690,1747649447391,-420.0,0.00013698,2]
[361627691,1747649447401,-420.0,0.00013698,2]
[361627692,1747649447411,-400.0,0.00013698,2]
[361627693,1747649447422,-420.0,0.00013698,2]
[361627694,1747649447432,-420.0,0.00013698,2]
[361627695,1747649447442,-420.0,0.00013698,2]
[361627696,1747649447452,-420.0,0.00013698,2]
[361627697,1747649447462,-420.0,0.00013698,2]
[361627698,1747649447471,-420.0,0.00013698,2]
[361627699,1747649447482,-662.94,0.00013698,2]
[361627700,1747649447493,-420.0,0.00013698,2]
[361627701,1747649447504,-400.0,0.00013698,2]
[361627702,1747649447514,-420.0,0.00013698,2]
[361627703,1747649447525,-751.05,0.00013698,2]
[361627704,1747649447537,-360.0,0.00013698,2]
[361627705,1747649447547,-420.0,0.00013698,2]
[361627706,1747649447557,-420.0,0.00013698,2]
[361627707,1747649447568,-420.0,0.00013698,2]
[361627708,1747649447579,-663.92,0.00013698,2]
[361627709,1747649447592,-743.54,0.00013698,2]
[361627710,1747649447604,-1548.88,0.00013698,2]
[361627711,1747649447615,-420.0,0.00013698,2]
[361627712,1747649447626,-420.0,0.00013698,2]
[361627713,1747649447636,-420.0,0.00013698,2]
[361627714,1747649447648,-420.0,0.00013698,2]
[361627715,1747649447658,-300.0,0.00013698,2]
[361627716,1747649447669,-420.0,0.00013698,2]
[361627717,1747649447679,-420.0,0.00013698,2]
[361627718,1747649447691,-420.0,0.00013698,2]
[361627719,1747649447701,-420.0,0.00013698,2]
[361627720,1747649447712,-621.65,0.00013698,2]
[361627721,1747649447722,-553.45,0.00013698,2]
[361627722,1747649447733,-420.0,0.00013698,2]
[361627723,1747649447743,-420.0,0.00013698,2]
[361627724,1747649447754,-435.37691318,0.00013698,2]
[361627725,1747649447765,-517.49,0.00013698,2]
[361627726,1747649447776,-420.0,0.00013698,2]
[361627727,1747649447786,-451.92,0.00013698,2]
[361627728,1747649447796,-853.69,0.00013698,2]
[361627729,1747649447806,-455.72,0.00013698,2]
[361627730,1747649447817,-420.0,0.00013698,2]
[361627731,1747649447827,-420.0,0.00013698,2]
[361627732,1747649447838,-162.38443869,0.00013698,2]
[361627733,1747649447850,-420.0,0.00013698,2]
[361627734,1747649447861,-551.05,0.00013698,2]
[361627735,1747649447873,-1159.21,0.00013698,2]